fUST/lending_fUST_20260226
["ID","MTS","AMOUNT","RATE_DAILY","PERIOD"]
[406684496,1772076575947,-250.0,0.00016032,2]
[406684497,1772076575969,-250.0,0.00016032,2]
[406684498,1772076575992,-250.0,0.00016032,2]
[406684499,1772076576014,-250.0,0.00016032,2]
[406684500,1772076576037,-151.0,0.00016032,2]
[406684501,1772076576058,-250.0,0.00016032,2]
[406684502,1772076576081,-250.0,0.00016032,2]
[406684503,1772076576102,-250.0,0.00016032,2]
[406684504,1772076576279,-250.0,0.00016032,2]
[406684505,1772076576301,-151.0,0.00016032,2]
[406684506,1772076576322,-250.0,0.00016032,2]
[406684507,1772076576343,-250.0,0.00016032,2]
[406684508,1772076576365,-250.0,0.00016032,2]
[406684509,1772076576386,-250.0,0.00016032,2]
[406684510,1772076576408,-151.0,0.00016032,2]
[406684511,1772076576429,-250.0,0.00016032,2]
[406684512,1772076576452,-1957.856,0.00016032,2]
[406684513,1772076576473,-250.0,0.00016032,2]
[406684514,1772076576495,-250.0,0.00016032,2]
[406684515,1772076576517,-250.0,0.00016032,2]
[406684516,1772076576538,-250.0,0.00016032,2]
[406684517,1772076576559,-151.0,0.00016032,2]
[406684518,1772076576581,-250.0,0.00016032,2]
[406684519,1772076576602,-250.0,0.00016032,2]
[406684520,1772076576624,-250.0,0.00016032,2]
[406684521,1772076576644,-250.0,0.00016032,2]
[406684522,1772076576666,-250.0,0.00016032,2]
[406684523,1772076576688,-250.0,0.00016032,2]
[406684524,1772076576709,-250.0,0.00016032,2]
[406684525,1772076576735,-250.0,0.00016032,2]
[406684526,1772076576756,-250.0,0.00016032,2]
[406684527,1772076576783,-194.72792766,0.00016032,2]
[406684528,1772076576806,-250.0,0.00016032,2]
[406684529,1772076576827,-250.0,0.00016032,2]
[406684530,1772076576853,-250.0,0.00016032,2]
[406684531,1772076576876,-250.0,0.00016032,2]
[406684532,1772076576897,-250.0,0.00016032,2]
[406684533,1772076576930,-250.0,0.00016032,2]
[406684534,1772076576956,-250.0,0.00016032,2]
[406684535,1772076576978,-250.0,0.00016032,2]
[406684536,1772076577003,-250.0,0.00016032,2]
[406684537,1772076577029,-201.93286099,0.00016032,2]
[406684538,1772076577051,-250.0,0.00016032,2]
[406684539,1772076577074,-250.0,0.00016032,2]
[406684540,1772076577096,-250.0,0.00016032,2]
[406684541,1772076577118,-250.0,0.00016032,2]
[406684542,1772076577144,-250.0,0.00016032,2]
[406684543,1772076577173,-209.40437684,0.00016032,2]
[406684544,1772076577197,-250.0,0.00016032,2]
[406684545,1772076577218,-151.0,0.00016032,2]
[406684546,1772076577241,-250.0,0.00016032,2]
[406684547,1772076577264,-250.0,0.00016032,2]
[406684548,1772076577288,-250.0,0.00016032,2]
[406684549,1772076577312,-250.0,0.00016032,2]
[406684550,1772076577335,-250.0,0.00016032,2]
[406684551,1772076577358,-250.0,0.00016032,2]
[406684552,1772076577380,-151.0,0.00016032,2]
[406684553,1772076577402,-250.0,0.00016032,2]
[406684554,1772076577425,-292.86174089,0.00016032,2]
[406684555,1772076577449,-250.0,0.00016032,2]
[406684556,1772076577472,-250.0,0.00016032,2]
[406684557,1772076577497,-217.15233878,0.00016032,2]
[406684558,1772076577520,-250.0,0.00016032,2]
[406684559,1772076577548,-250.0,0.00016032,2]
[406684560,1772076577572,-151.0,0.00016032,2]
[406684561,1772076577596,-250.0,0.00016032,2]
[406684562,1772076577624,-225.18697532,0.00016032,2]
[406684563,1772076577647,-250.0,0.00016032,2]
[406684564,1772076577670,-151.0,0.00016032,2]
[406684565,1772076577693,-250.0,0.00016032,2]
[406684566,1772076577717,-250.0,0.00016032,2]
[406684567,1772076577745,-233.51889341,0.00016032,2]
[406684568,1772076577767,-151.0,0.00016032,2]
[406684569,1772076577790,-250.0,0.00016032,2]
[406684570,1772076577817,-242.15909246,0.00016032,2]
[406684571,1772076577841,-250.0,0.00016032,2]
[406684572,1772076577864,-250.0,0.00016032,2]
[406684573,1772076577888,-151.0,0.00016032,2]
[406684574,1772076577911,-250.0,0.00016032,2]
[406684575,1772076577934,-250.0,0.00016032,2]
[406684576,1772076577961,-251.11897888,0.00016032,2]
[406684577,1772076577984,-250.0,0.00016032,2]
[406684578,1772076578008,-151.0,0.00016032,2]
[406684579,1772076578034,-260.4103811,0.00016032,2]
[406684580,1772076578058,-250.0,0.00016032,2]
[406684581,1772076578081,-250.0,0.00016032,2]
[406684582,1772076578103,-151.0,0.00016032,2]
[406684583,1772076578129,-270.0455652,0.00016032,2]
[406684584,1772076578152,-250.0,0.00016032,2]
[406684585,1772076578176,-151.0,0.00016032,2]
[406684586,1772076578202,-280.03725112,0.00016032,2]
[406684587,1772076578225,-250.0,0.00016032,2]
[406684588,1772076578249,-151.0,0.00016032,2]
[406684589,1772076578276,-290.39862941,0.00016032,2]
[406684590,1772076578298,-151.0,0.00016032,2]
[406684591,1772076578326,-301.1433787,0.00016032,2]
[406684592,1772076578349,-151.0,0.00016032,2]
[406684593,1772076578371,-250.0,0.00016032,2]
[406684594,1772076578397,-151.0,0.00016032,2]
[406684595,1772076578422,-250.0,0.00016032,2]
[406684596,1772076578443,-250.0,0.00016032,2]
[406684597,1772076578467,-151.0,0.00016032,2]
[406684598,1772076578489,-250.0,0.00016032,2]
[406684599,1772076578510,-151.0,0.00016032,2]
[406684600,1772076578532,-250.0,0.00016032,2]
[406684601,1772076578555,-2579.17784983,0.00016032,2]
[406684602,1772076578577,-250.0,0.00016032,2]
[406684603,1772076578603,-151.0,0.00016032,2]
[406684604,1772076578627,-151.0,0.00016032,2]
[406684605,1772076578649,-151.0,0.00016032,2]
[406684606,1772076578670,-194.72792766,0.00016032,2]
[406684607,1772076578694,-151.0,0.00016032,2]
[406684608,1772076578720,-500.0,0.00016032,2]
[406684609,1772076578749,-154.04416148,0.00016032,2]
[406684610,1772076578775,-500.0,0.00016032,2]
[406684611,1772076578798,-500.0,0.00016032,2]
[406684612,1772076579009,-500.0,0.00016032,2]
[406684613,1772076579034,-162.75399136,0.00016032,2]
[406684614,1772076579058,-500.0,0.00016032,2]
[406684615,1772076579082,-644.79446246,0.00016032,2]
[406684616,1772076579104,-500.0,0.00016032,2]
[406684617,1772076579127,-500.0,0.00016032,2]
[406684618,1772076579150,-500.0,0.00016032,2]
[406684619,1772076579173,-500.0,0.00016032,2]
[406684620,1772076579196,-500.0,0.00016032,2]
[406684621,1772076579219,-500.0,0.00016032,2]
[406684622,1772076579242,-500.0,0.00016032,2]
[406684623,1772076579265,-500.0,0.00016032,2]
[406684624,1772076579288,-500.0,0.00016032,2]
[406684625,1772076579325,-250.0,0.00016032,2]
[406684626,1772076579355,-500.0,0.00016032,2]
[406684627,1772076579379,-250.0,0.00016032,2]
[406684628,1772076579403,-500.0,0.00016032,2]
[406684629,1772076579428,-500.0,0.00016032,2]
[406684630,1772076579451,-250.0,0.00016032,2]
[406684631,1772076579475,-500.0,0.00016032,2]
[406684632,1772076579499,-250.0,0.00016032,2]
[406684633,1772076579524,-500.0,0.00016032,2]
[406684634,1772076579549,-250.0,0.00016032,2]
[406684635,1772076579573,-500.0,0.00016032,2]
[406684636,1772076579596,-250.0,0.00016032,2]
[406684637,1772076579620,-500.0,0.00016032,2]
[406684638,1772076579643,-250.0,0.00016032,2]
[406684639,1772076579667,-500.0,0.00016032,2]
[406684640,1772076579691,-500.0,0.00016032,2]
[406684641,1772076579714,-250.0,0.00016032,2]
[406684642,1772076579743,-500.0,0.00016032,2]
[406684643,1772076579767,-500.0,0.00016032,2]
[406684644,1772076579791,-500.0,0.00016032,2]
[406684645,1772076579818,-250.0,0.00016032,2]
[406684646,1772076579840,-500.0,0.00016032,2]
[406684647,1772076579864,-500.0,0.00016032,2]
[406684648,1772076579886,-250.0,0.00016032,2]
[406684649,1772076579908,-500.0,0.00016032,2]
[406684650,1772076579932,-500.0,0.00016032,2]
[406684651,1772076579960,-250.0,0.00016032,2]
[406684652,1772076579985,-500.0,0.00016032,2]
[406684653,1772076580009,-500.0,0.00016032,2]
[406684654,1772076580034,-250.0,0.00016032,2]
[406684655,1772076580059,-500.0,0.00016032,2]
[406684656,1772076580082,-250.0,0.00016032,2]
[406684657,1772076580107,-500.0,0.00016032,2]
[406684658,1772076580131,-500.0,0.00016032,2]
[406684659,1772076580154,-500.0,0.00016032,2]
[406684660,1772076580177,-500.0,0.00016032,2]
[406684661,1772076580201,-500.0,0.00016032,2]
[406684662,1772076580225,-500.0,0.00016032,2]
[406684663,1772076580249,-250.0,0.00016032,2]
[406684664,1772076580273,-250.0,0.00016032,2]
[406684665,1772076580296,-250.0,0.00016032,2]
[406684666,1772076580319,-250.0,0.00016032,2]
[406684667,1772076580342,-250.0,0.00016032,2]
[406684668,1772076580364,-250.0,0.00016032,2]
[406684669,1772076580386,-2030.296672,0.00016087,2]
[406684670,1772076580410,-1507.92059062,0.00016142,2]
[406684671,1772076580432,-363.33936557,0.00016323,2]
[406684672,1772076580456,-500.0,0.00016393,7]
[406684673,1772076580479,-500.0,0.00016393,8]
[406684674,1772076580501,-500.0,0.00016393,9]
[406684675,1772076580523,-150.0,0.00016438,2]
[406684676,1772076580544,-297.10665449,0.00016438,2]
[406684677,1772076580572,-151.0,0.00016438,2]
[406684678,1772076580596,-165.29423594,0.00016438,2]
[406684679,1772076580618,-3000.0,0.00016438,2]
[406684680,1772076580641,-213.977555,0.0001656,2]
[406684681,1772076580663,-213.977555,0.0001656,2]
[406684682,1772076580686,-213.977555,0.0001656,2]
[406684683,1772076580709,-213.977555,0.0001656,2]
[406684684,1772076580733,-318.50814793,0.0001656,2]
[406684685,1772076580755,-2793.54281503,0.0001656,2]
[406684686,1772076580778,-563.13996512,0.0001658,2]
[406684687,1772076580800,-2674.60743027,0.0001658,2]
[406684688,1772076580822,-668.65185757,0.0001658,2]
[406684689,1772076580846,-2298.97365848,0.00016726,2]
[406684690,1772076580870,-299.5682279,0.00016759,2]
[406684691,1772076580891,-494.78,0.00016824,3]
[406684692,1772076580913,-200.0,0.00016908,3]
[406684693,1772076580935,-166.363462,0.00016986,2]
[406684694,1772076580957,-201.64251328,0.00016986,2]
[406684695,1772076580979,-3500.0,0.00016986,2]
[406684696,1772076581003,-500.0,0.00016987,10]
[406684697,1772076581024,-589.59492692,0.00016988,2]
[406684698,1772076581045,-471.72582443,0.00016988,2]
[406684699,1772076581068,-198.03113621,0.00016988,2]
[406684700,1772076581091,-356.45604518,0.00016988,2]
[406684701,1772076581112,-500.0,0.00016989,11]
[406684702,1772076581135,-500.0,0.00016989,12]
[406684703,1772076581156,-500.0,0.00016989,13]
[406684704,1772076581178,-500.0,0.00016989,14]
[406684705,1772076581200,-500.0,0.00016989,15]
[406684706,1772076581221,-151.0,0.00016989,2]
[406684707,1772076581244,-151.0,0.00016989,2]
[406684708,1772076581265,-78288.95778378,0.0001699,2]
[406684740,1772076632257,-2334.72941915,0.0001314,2]
[406684779,1772076638582,-2022.38299121,0.0001314,2]
[406684781,1772076638594,-642.88758964,0.0001314,2]
[406684783,1772076638603,-254.55128494,0.00013206,2]
[406684784,1772076638613,-170.93231661,0.00013272,2]
[406684786,1772076638623,-500.0,0.00013272,2]
[406684787,1772076638633,-304.65834723,0.00013272,2]
[406684788,1772076638642,-500.0,0.00013272,2]
[406684789,1772076638652,-500.0,0.00013272,2]
[406684790,1772076638661,-500.0,0.00013272,2]
[406684791,1772076638671,-500.0,0.00013272,2]
[406684792,1772076638681,-500.0,0.00013272,2]
[406684793,1772076638691,-500.0,0.00013272,2]
[406684794,1772076638701,-500.0,0.00013272,2]
[406684795,1772076638710,-500.0,0.00013272,2]
[406684796,1772076638720,-500.0,0.00013272,2]
[406684797,1772076638730,-500.0,0.00013272,2]
[406684798,1772076638744,-500.0,0.00013272,2]
[406684799,1772076638754,-500.0,0.00013272,2]
[406684800,1772076638763,-500.0,0.00013272,2]
[406684801,1772076638772,-500.0,0.00013272,2]
[406684802,1772076638783,-500.0,0.00013272,2]
[406684803,1772076638792,-500.0,0.00013272,2]
[406684804,1772076638801,-623.69148391,0.00013272,2]
[406684805,1772076638811,-500.0,0.00013272,2]
[406684806,1772076638821,-500.0,0.00013272,2]
[406684807,1772076638830,-500.0,0.00013272,2]
[406684808,1772076638839,-500.0,0.00013272,2]
[406684809,1772076638849,-500.0,0.00013272,2]
[406684810,1772076638859,-500.0,0.00013272,2]
[406684811,1772076638868,-500.0,0.00013272,2]
[406684812,1772076638878,-500.0,0.00013272,2]
[406684813,1772076638887,-500.0,0.00013272,2]
[406684814,1772076638897,-500.0,0.00013272,2]
[406684815,1772076638906,-500.0,0.00013272,2]
[406684816,1772076638915,-500.0,0.00013272,2]
[406684817,1772076638925,-500.0,0.00013272,2]
[406684818,1772076638935,-500.0,0.00013272,2]
[406684819,1772076638944,-500.0,0.00013272,2]
[406684820,1772076638954,-500.0,0.00013272,2]
[406684821,1772076638964,-500.0,0.00013272,2]
[406684822,1772076638974,-500.0,0.00013272,2]
[406684823,1772076638983,-500.0,0.00013272,2]
[406684824,1772076638993,-500.0,0.00013272,2]
[406684825,1772076639003,-500.0,0.00013272,2]
[406684826,1772076639012,-500.0,0.00013272,2]
[406684827,1772076639022,-500.0,0.00013272,2]
[406684828,1772076639032,-500.0,0.00013272,2]
[406684829,1772076639041,-371.70783037,0.00013272,2]
[406684830,1772076639051,-500.0,0.00013272,2]
[406684831,1772076639060,-500.0,0.00013273,2]
[406684832,1772076639069,-500.0,0.00013273,2]
[406684833,1772076639079,-500.0,0.00013273,2]
[406684834,1772076639088,-500.0,0.00013273,2]
[406684835,1772076639097,-500.0,0.00013273,2]
[406684836,1772076639107,-500.0,0.00013273,2]
[406684837,1772076639116,-500.0,0.00013273,2]
[406684838,1772076639125,-327.97125821,0.00013273,2]
[406684839,1772076639135,-500.0,0.00013273,2]
[406684840,1772076639144,-500.0,0.00013273,2]
[406684841,1772076639154,-500.0,0.00013273,2]
[406684842,1772076639163,-500.0,0.00013273,2]
[406684843,1772076639172,-500.0,0.00013273,2]
[406684844,1772076639181,-500.0,0.00013273,2]
[406684845,1772076639190,-500.0,0.00013273,2]
[406684846,1772076639200,-500.0,0.00013273,2]
[406684847,1772076639210,-150.0,0.00013673,2]
[406684848,1772076639219,-500.0,0.00013699,2]
[406684849,1772076639229,-500.0,0.00013699,2]
[406684850,1772076639239,-500.0,0.00013699,2]
[406684851,1772076639248,-500.0,0.00013699,2]
[406684852,1772076639257,-500.0,0.00013699,2]
[406684853,1772076639267,-500.0,0.00013699,2]
[406684854,1772076639276,-500.0,0.00013699,2]
[406684855,1772076639285,-508.26072337,0.00013699,2]
[406684856,1772076639295,-500.0,0.00013699,2]
[406684857,1772076639304,-500.0,0.00013699,2]
[406684858,1772076639314,-500.0,0.00013699,2]
[406684859,1772076639323,-545.9517255,0.00013699,2]
[406684860,1772076639333,-500.0,0.00013699,2]
[406684861,1772076639343,-538.69527668,0.00013699,2]
[406684862,1772076639353,-500.0,0.00013699,2]
[406684863,1772076639362,-500.0,0.00013699,2]
[406684864,1772076639371,-500.0,0.00013699,2]
[406684865,1772076639381,-503.72670261,0.00013821,2]
[406684866,1772076639390,-1000.0,0.00013821,2]
[406684867,1772076639400,-1000.0,0.00013821,2]
[406684868,1772076639409,-714.20796885,0.00013821,2]
[406684869,1772076639421,-285.79203115,0.00013821,2]
[406684870,1772076639430,-1000.0,0.00013821,2]
[406684871,1772076639440,-1000.0,0.00013821,2]
[406684872,1772076639449,-1000.0,0.00013821,2]
[406684873,1772076639459,-500.4517366,0.00013821,2]
[406684874,1772076639468,-353.87941412,0.00013821,2]
[406684875,1772076639476,-1000.0,0.00013821,2]
[406684876,1772076639486,-509.11659013,0.00013821,2]
[406684877,1772076639495,-501.08085968,0.00013821,2]
[406684878,1772076639504,-1000.0,0.00013821,2]
[406684879,1772076639514,-506.42400146,0.00013821,2]
[406684880,1772076639523,-1000.0,0.00013821,2]
[406684881,1772076639533,-151.76877493,0.00014221,2]
[406684882,1772076639543,-1000.0,0.00014247,2]
[406684883,1772076639552,-1000.0,0.00014247,2]
[406684884,1772076639561,-1000.0,0.00014247,2]
[406684885,1772076639570,-1000.0,0.00014247,2]
[406684886,1772076639580,-277.07215504,0.00014247,2]
[406684887,1772076639589,-507.73535729,0.00014247,2]
[406684888,1772076639599,-1000.0,0.00014247,2]
[406684889,1772076639608,-504.99664035,0.00014247,2]
[406684890,1772076639618,-1000.0,0.00014247,2]
[406684891,1772076639627,-1000.0,0.00014247,2]
[406684892,1772076639637,-1001.5216922,0.00014247,2]
[406684893,1772076639646,-1000.0,0.00014247,2]
[406684894,1772076639655,-502.83751708,0.00014247,2]
[406684895,1772076639665,-1000.0,0.00014247,2]
[406684896,1772076639674,-1002.29590574,0.00014368,2]
[406684897,1772076639684,-1500.0,0.00014368,2]
[406684898,1772076639693,-1500.0,0.00014368,2]
[406684899,1772076639702,-1503.13900474,0.00014368,2]
[406684900,1772076639713,-1500.0,0.00014368,2]
[406684901,1772076639722,-165.92209389,0.00014368,2]
[406684902,1772076639731,-1500.0,0.00014368,2]
[406684903,1772076639743,-1009.09409925,0.00014368,2]
[406684904,1772076639752,-1500.0,0.00014368,2]
[406684906,1772076639762,-581.33771597,0.00014795,2]
[406684907,1772076639772,-1081.21027369,0.00014795,2]
[406684908,1772076639783,-1200.10699781,0.00014795,2]
[406684909,1772076639792,-1079.86046473,0.00014795,2]
[406684910,1772076639801,-1500.0,0.00014795,2]
[406684911,1772076639812,-1500.0,0.00014795,2]
[406684913,1772076639822,-1500.0,0.00014795,2]
[406684914,1772076639832,-512.12205979,0.00014795,2]
[406684915,1772076639843,-315.21575343,0.00014795,2]
[406684916,1772076639852,-1509.14533087,0.00014916,2]
[406684917,1772076639863,-887.47508745,0.00014916,2]
[406684918,1772076639873,-1035.93834376,0.00014916,2]
[406684919,1772076639882,-2000.0,0.00014916,2]
[406684920,1772076639892,-2000.0,0.00014916,2]
[406684921,1772076639902,-300.37051623,0.00015206,2]
[406684922,1772076639912,-785.9727843,0.00015342,2]
[406684923,1772076639922,-238.23701806,0.00015342,2]
[406684924,1772076639931,-2000.0,0.00015342,2]
[406684925,1772076639941,-2500.0,0.00015464,2]
[406684926,1772076639951,-2500.0,0.00015464,2]
[406684927,1772076639960,-250.0,0.00015627,2]
[406684928,1772076639970,-2579.17784983,0.00015627,2]
[406684929,1772076639979,-250.0,0.00015627,2]
[406684930,1772076639988,-250.0,0.00015627,2]
[406684931,1772076639998,-250.0,0.00015627,2]
[406684932,1772076640007,-250.0,0.00015627,2]
[406684933,1772076640017,-250.0,0.00015627,2]
[406684934,1772076640026,-250.0,0.00015627,2]
[406684935,1772076640037,-250.0,0.00015627,2]
[406684936,1772076640047,-250.0,0.00015627,2]
[406684937,1772076640056,-250.0,0.00015627,2]
[406684938,1772076640066,-250.0,0.00015627,2]
[406684939,1772076640076,-250.0,0.00015627,2]
[406684940,1772076640085,-644.79446245,0.00015627,2]
[406684941,1772076640095,-250.0,0.00015627,2]
[406684942,1772076640104,-194.72792766,0.00015627,2]
[406684943,1772076640114,-250.0,0.00015627,2]
[406684944,1772076640124,-250.0,0.00015627,2]
[406684945,1772076640133,-201.93286099,0.00015627,2]
[406684946,1772076640143,-250.0,0.00015627,2]
[406684947,1772076640152,-250.0,0.00015627,2]
[406684948,1772076640162,-209.40437684,0.00015627,2]
[406684949,1772076640171,-250.0,0.00015627,2]
[406684950,1772076640180,-250.0,0.00015627,2]
[406684951,1772076640190,-250.0,0.00015627,2]
[406684952,1772076640199,-217.15233878,0.00015627,2]
[406684953,1772076640209,-250.0,0.00015627,2]
[406684954,1772076640219,-250.0,0.00015627,2]
[406684955,1772076640228,-225.18697532,0.00015627,2]
[406684956,1772076640238,-250.0,0.00015627,2]
[406684957,1772076640247,-250.0,0.00015627,2]
[406684958,1772076640257,-400.01321264,0.00015627,2]
[406684959,1772076640267,-191.152788,0.00015627,2]
[406684960,1772076640276,-233.51889341,0.00015627,2]
[406684961,1772076640286,-500.0,0.00015627,2]
[406684962,1772076640296,-242.15909246,0.00015627,2]
[406684964,1772076640305,-250.0,0.00015627,2]
[406684966,1772076640315,-500.0,0.00015627,2]
[406684967,1772076640324,-251.11897888,0.00015627,2]
[406684968,1772076640334,-500.0,0.00015627,2]
[406684969,1772076640344,-500.0,0.00015627,2]
[406684970,1772076640353,-260.4103811,0.00015627,2]
[406684971,1772076640364,-500.0,0.00015627,2]
[406684972,1772076640373,-270.0455652,0.00015627,2]
[406684973,1772076640383,-500.0,0.00015627,2]
[406684974,1772076640392,-280.03725112,0.00015627,2]
[406684975,1772076640402,-500.0,0.00015627,2]
[406684976,1772076640411,-290.39862941,0.00015627,2]
[406684977,1772076640421,-500.0,0.00015627,2]
[406684978,1772076640431,-500.0,0.00015627,2]
[406684979,1772076640441,-301.1433787,0.00015627,2]
[406684980,1772076640450,-500.0,0.00015627,2]
[406684981,1772076640460,-500.0,0.00015627,2]
[406684982,1772076640469,-500.0,0.00015627,2]
[406684983,1772076640478,-500.0,0.00015627,2]
[406684984,1772076640488,-500.0,0.00015627,2]
[406684985,1772076640497,-500.0,0.00015627,2]
[406684986,1772076640507,-500.0,0.00015627,2]
[406684987,1772076640520,-500.0,0.00015627,2]
[406684989,1772076640529,-500.0,0.00015627,2]
[406684990,1772076640539,-500.0,0.00015627,2]
[406684991,1772076640548,-500.0,0.00015627,2]
[406684992,1772076640558,-500.0,0.00015627,2]
[406684993,1772076640568,-500.0,0.00015627,2]
[406684994,1772076640577,-500.0,0.00015627,2]
[406684995,1772076640587,-500.0,0.00015627,2]
[406684996,1772076640595,-500.0,0.00015627,2]
[406684997,1772076640604,-500.0,0.00015627,2]
[406684998,1772076640613,-500.0,0.00015627,2]
[406684999,1772076640623,-500.0,0.00015627,2]
[406685001,1772076640632,-500.0,0.00015627,2]
[406685002,1772076640641,-500.0,0.00015627,2]
[406685003,1772076640650,-500.0,0.00015627,2]
[406685004,1772076640659,-500.0,0.00015627,2]
[406685005,1772076640669,-500.0,0.00015627,2]
[406685006,1772076640678,-500.0,0.00015627,2]
[406685007,1772076640687,-500.0,0.00015627,2]
[406685008,1772076640696,-500.0,0.00015627,2]
[406685009,1772076640705,-500.0,0.00015627,2]
[406685010,1772076640714,-500.0,0.00015627,2]
[406685011,1772076640724,-500.0,0.00015627,2]
[406685012,1772076640734,-2500.0,0.0001589,2]
[406685013,1772076640748,-3000.0,0.00016012,2]
[406685014,1772076640757,-3000.0,0.00016012,2]
[406685015,1772076640767,-2674.60743027,0.00016175,2]
[406685016,1772076640777,-2732.1529208,0.00016315,2]
[406685017,1772076640787,-3000.0,0.00016438,2]
[406685018,1772076640797,-3500.0,0.0001656,2]
[406685019,1772076640807,-3472.12994267,0.0001656,2]
[406685020,1772076640818,-2773.56790519,0.00016723,2]
[406685021,1772076640828,-231.53193526,0.00016726,2]
[406685022,1772076640838,-3500.0,0.00016986,2]
[406685023,1772076640847,-300.0,0.00016989,2]
[406685024,1772076640857,-21711.04221622,0.0001699,2]
[406685025,1772076640866,-213.977555,0.0001699,2]
[406685026,1772076640876,-213.977555,0.0001699,2]
[406685027,1772076640886,-213.977555,0.0001699,2]
[406685028,1772076640895,-213.977555,0.0001699,2]
[406685029,1772076640904,-151.0,0.0001699,2]
[406685030,1772076640914,-163.948,0.00017,2]
[406685031,1772076640924,-4000.0,0.00017108,2]
[406685032,1772076640933,-346.18974752,0.00017206,2]
[406685033,1772076640943,-500.0,0.00017221,16]
[406685034,1772076640953,-2876.18991768,0.00017271,2]
[406685035,1772076640963,-584.56205601,0.00017299,17]
[406685036,1772076640973,-989.54,0.00017372,3]
[406685037,1772076640983,-3712.6020309,0.00017378,2]
[406685038,1772076640993,-160.0,0.00017493,3]
[406685039,1772076641002,-20000.0,0.000175,2]
[406685040,1772076641012,-4000.0,0.00017534,2]
[406685041,1772076641022,-2788.48948856,0.00017656,2]
[406685042,1772076641031,-151.0,0.00017676,2]
[406685043,1772076641041,-151.0,0.00017676,2]
[406685044,1772076641050,-160.206664,0.00017676,2]
[406685045,1772076641060,-151.0,0.00017676,2]
[406685046,1772076641070,-500.0,0.00017699,2]
[406685047,1772076641080,-150.82957733,0.00017699,2]
[406685048,1772076641090,-238.0,0.00017713,2]
[406685049,1772076641100,-1832.1720715,0.00017762,2]
[406685050,1772076641110,-160.0,0.00017783,4]
[406685051,1772076641119,-238.0,0.00017788,2]
[406685052,1772076641129,-150.0,0.00017808,2]
[406685053,1772076641139,-2982.60894464,0.00017819,2]
[406685054,1772076641148,-171.5,0.00017891,2]
[406685055,1772076641158,-210.6347952,0.00017925,2]
[406685057,1772076641167,-238.0,0.00017939,2]
[406685058,1772076641177,-1061.27086846,0.00017977,2]
[406685059,1772076641187,-849.10648397,0.00017978,2]
[406685060,1772076641197,-151.0,0.0001799,2]
[406685061,1772076641206,-500.0,0.00017998,2]
[406685062,1772076641216,-500.0,0.00017998,2]
[406685063,1772076641226,-155.611,0.00017999,2]
[406685064,1772076641236,-426.44854476,0.00017999,2]
[406685065,1772076641246,-518.76087866,0.00017999,2]
[406685066,1772076641256,-26018.65538341,0.00018,2]
[406685067,1772076641265,-859.920172,0.00018,2]
[406685068,1772076641275,-859.920172,0.00018,2]
[406685069,1772076641285,-859.920172,0.00018,2]
[406685070,1772076641294,-859.920172,0.00018,2]
[406685071,1772076641304,-151.0,0.00018,2]
[406685072,1772076641313,-151.0,0.00018,2]
[406685073,1772076641324,-151.0,0.00018,2]
[406685074,1772076641335,-238.0,0.00018004,2]